[Event "WTCC-65 2018"]
[Site "Radebeul"]
[Date "2018.07.14"]
[Round "8"]
[White "Rashkovsky, Nukhim N"]
[Black "Buchal, Stephan"]
[Result "1-0"]
[ECO "A40"]
[WhiteElo "2483"]
[BlackElo "2329"]
[Annotator "ChessBase"]
[PlyCount "93"]
[EventDate "2018.07.07"]
[EventType "team-tourn"]
[EventCountry "GER"]
[SourceTitle "playchess.com"]
[Source "ChessBase"]
[SourceQuality "1"]
[TimeControl "40/5400+30:1800+30"]

1. d4 {[%emt 0:00:00]} g6 {[%emt 0:00:00]} 2. Nf3 {[%emt 0:00:07]} Bg7 {[%emt 0:00:00]} 3. g3 {[%emt 0:00:11]} d6 {[%emt 0:00:15]} 4. Bg2 {[%emt 0:00:07]} Nf6 {[%emt 0:00:07]} 5. O-O {[%emt 0:00:10]} O-O {[%emt 0:00:07]} 6. a4 {[%emt 0:00:27]} Nbd7 {[%emt 0:01:06]} 7. a5 {[%emt 0:04:04]} c6 {[%emt 0:10:59]} 8. c4 {[%emt 0:04:18]} e5 {[%emt 0:03:55]} 9. Nc3 {[%emt 0:00:21]} Re8 {[%emt 0:06:22]} 10. d5 {[%emt 0:02:23]} cxd5 {[%emt 0:12:52]} 11. cxd5 {[%emt 0:00:30]} b6 {[%emt 0:06:45]} 12. Nd2 {[%emt 0:14:52]} a6 {[%emt 0:10:07]} 13. axb6 {[%emt 0:17:29]} Nxb6 {[%emt 0:01:35]} 14. Nb3 {[%emt 0:00:15]} Bf5 {[%emt 0:04:02]} 15. Na5 {[%emt 0:01:22]} Qc8 {[%emt 0:05:40]} 16. Qb3 {[%emt 0:02:08]} Nbd7 {[%emt 0:04:27]} 17. Qa3 {[%emt 0:03:46]} Nc5 {[%emt 0:03:06]} 18. Be3 {[%emt 0:00:40]} e4 {[%emt 0:03:38]} 19. Nc4 {[%emt 0:03:17]} Qc7 {[%emt 0:05:49]} 20. Nxd6 {[%emt 0:02:00]} Qxd6 {[%emt 0:00:14]} 21. Bxc5 {[%emt 0:01:41]} Qd7 {[%emt 0:00:40]} 22. Rfd1 {[%emt 0:01:30]} Bh3 {[%emt 0:01:15]} 23. Qa4 {[%emt 0:06:13]} Qf5 {[%emt 0:00:50]} 24. Bd4 {[%emt 0:01:30]} Bxg2 {[%emt 0:03:45]} 25. Kxg2 {[%emt 0:00:02]} h5 {[%emt 0:00:33]} 26. h3 {[%emt 0:03:09]} Rad8 {[%emt 0:06:15]} 27. Bxf6 {[%emt 0:07:19]} Bxf6 {[%emt 0:00:41]} 28. d6 {[%emt 0:00:55]} e3 {[%emt 0:03:36]} 29. Qf4 {[%emt 0:01:08]} Qxf4 {[%emt 0:04:03]} 30. gxf4 {[%emt 0:00:03]} exf2 {[%emt 0:00:59]} 31. Kxf2 {[%emt 0:00:30]} Rb8 {[%emt 0:00:35]} 32. Rxa6 {[%emt 0:10:32]} Rxb2 {[%emt 0:00:08]} 33. d7 {[%emt 0:00:27]} Bh4+ {[%emt 0:00:12]} 34. Kf3 {[%emt 0:00:10]} Rd8 {[%emt 0:00:28]} 35. Ra7 {[%emt 0:04:11]} Rb3 {[%emt 0:01:39]} 36. Rd3 {[%emt 0:00:11]} Kg7 {[%emt 0:00:40]} 37. Nd5 {[%emt 0:00:38]} Rb1 {[%emt 0:00:13]} 38. Ke4 {[%emt 0:01:55]} Rb5 {[%emt 0:00:47]} 39. Kd4 {[%emt 0:01:33]} Rdb8 {[%emt 0:00:27]} 40. Rc3 {[%emt 0:02:20]} R5b7 {[%emt 0:00:31]} 41. Rxb7 {[%emt 0:30:04]} Rxb7 {[%emt 0:30:15]} 42. Rc7 {[%emt 0:00:20]} Rxc7 {[%emt 0:00:00]} 43. Nxc7 {[%emt 0:00:00]} Bd8 {[%emt 0:00:00]} 44. Nd5 {[%emt 0:00:00]} f6 {[%emt 0:00:00]} 45. Nb4 {[%emt 0:00:00]} g5 {[%emt 0:00:00]} 46. fxg5 {[%emt 0:00:00]} fxg5 {[%emt 0:00:00]} 47. Nc6 {[%emt 0:00:00]} 1-0

[Event "WTCC-65 2018"]
[Site "Radebeul"]
[Date "2018.07.14"]
[Round "8"]
[White "Sharif, Mehrshad"]
[Black "Wahlbom, Magnus"]
[Result "1-0"]
[ECO "A05"]
[WhiteElo "2353"]
[BlackElo "2185"]
[Annotator "NA"]
[PlyCount "62"]
[EventDate "2018.07.07"]
[EventType "team-tourn"]
[EventCountry "GER"]
[SourceTitle "playchess.com"]
[Source "ChessBase"]
[SourceQuality "1"]
[TimeControl "40/5400+30:1800+30"]

1. Nf3 {[%emt 0:00:00]} Nf6 {[%emt 0:00:00]} 2. g3 {[%emt 0:00:00]} c5 {[%emt 0:00:48]} 3. Bg2 {[%emt 0:01:16]} Nc6 {[%emt 0:01:16]} 4. O-O {[%emt 0:01:32]} g6 {[%emt 0:01:07]} 5. b3 {[%emt 0:01:49]} Bg7 {[%emt 0:00:28]} 6. Bb2 {[%emt 0:00:41]} O-O {[%emt 0:03:36]} 7. c4 {[%emt 0:00:29]} d5 {[%emt 0:03:19]} 8. cxd5 {[%emt 0:00:22]} Nxd5 {[%emt 0:00:10]} 9. Bxg7 {[%emt 0:00:38]} Kxg7 {[%emt 0:00:07]} 10. d4 {[%emt 0:00:48]} cxd4 {[%emt 0:11:41]} 11. Nxd4 {[%emt 0:00:31]} Nxd4 {[%emt 0:00:45]} 12. Qxd4+ {[%emt 0:00:15]} Nf6 {[%emt 0:00:02] A05: Übergänge in verschiedene Eröffnungen} 13. Qe5 {[%emt 0:01:56]} Qb6 {[%emt 0:07:31]} 14. Nc3 {[%emt 0:00:47] [#]} Kg8 $146 {[%emt 0:21:16]} ({Vorgänger:} 14... Be6 15. Na4 Qb4 16. Qc5 a5 17. Qxb4 axb4 18. Bxb7 Ra5 19. Rfc1 Rd8 20. Rc5 {1-0 (67) Meier,G (2647)-Sebenik,M (2551) chess.com INT 2018}) 15. Na4 {[%emt 0:13:20]} Qd6 {[%emt 0:19:06]} 16. Qxd6 {[%emt 0:02:28]} exd6 {[%emt 0:00:07]} 17. Rfd1 {[%emt 0:02:48]} Rd8 {[%emt 0:00:25]} 18. Rd2 {[%emt 0:00:50]} Kf8 {[%emt 0:04:42]} 19. Rad1 {[%emt 0:02:55]} Ke7 {[%emt 0:00:53]} 20. Nb2 {[%emt 0:00:41]} Rb8 {[%emt 0:00:54]} 21. Nc4 {[%emt 0:00:23]} Ne8 {[%emt 0:01:09]} 22. Na5 {[%emt 0:01:14]} Rd7 {[%emt 0:02:14]} 23. Rd4 {[%emt 0:10:23]} Rc7 $14 {[%emt 0:03:04]} 24. Nc4 {[%emt 0:11:48]} Rd7 {[%emt 0:05:02]} 25. h3 {[%emt 0:08:02]} b6 {[%emt 0:02:36]} 26. Bc6 {[%emt 0:00:42]} Rd8 {[%emt 0:03:16]} 27. Bxe8 {[%emt 0:03:06]} Kxe8 {[%emt 0:00:29]} 28. Nxd6+ {[%emt 0:00:15]} Kf8 {[%emt 0:00:15]} 29. Nxc8 {[%emt 0:00:49]} Rxd4 {[%emt 0:00:07]} 30. Rxd4 {[%emt 0:00:27]} Rxc8 {[%emt 0:00:03]} 31. Rd2 {[%emt 0:00:57]} Ke7 {[%emt 0:00:21]} 1-0

[Event "WTCC-65 2018"]
[Site "Radebeul"]
[Date "2018.07.14"]
[Round "8"]
[White "Schmidt, Bodo"]
[Black "Balashov, Yuri S"]
[Result "1/2-1/2"]
[ECO "A46"]
[WhiteElo "2344"]
[BlackElo "2423"]
[Annotator "ChessBase"]
[PlyCount "60"]
[EventDate "2018.07.07"]
[EventType "team-tourn"]
[EventCountry "GER"]
[SourceTitle "playchess.com"]
[Source "ChessBase"]
[SourceQuality "1"]
[TimeControl "40/5400+30:1800+30"]

1. d4 {[%emt 0:02:20]} Nf6 {[%emt 0:00:00]} 2. Nf3 {[%emt 0:00:03]} e6 {[%emt 0:00:00]} 3. e3 {[%emt 0:00:11]} b6 {[%emt 0:00:25]} 4. Bd3 {[%emt 0:00:37]} Bb7 {[%emt 0:00:11]} 5. O-O {[%emt 0:00:40]} d5 {[%emt 0:03:42]} 6. b3 {[%emt 0:02:06]} Nbd7 {[%emt 0:01:56]} 7. c4 {[%emt 0:02:02]} Bd6 {[%emt 0:00:31]} 8. Nc3 {[%emt 0:00:42]} a6 {[%emt 0:02:12]} 9. Bb2 {[%emt 0:00:11]} O-O {[%emt 0:00:28]} 10. cxd5 {[%emt 0:01:42]} exd5 {[%emt 0:00:17]} 11. Rc1 {[%emt 0:00:03]} Qe7 {[%emt 0:01:59]} 12. Ne2 {[%emt 0:05:28]} Ne4 {[%emt 0:03:37]} 13. Ng3 {[%emt 0:00:51]} f5 {[%emt 0:01:24]} 14. Qc2 {[%emt 0:00:36]} Rf7 {[%emt 0:02:46]} 15. Qe2 {[%emt 0:07:44]} b5 {[%emt 0:07:35]} 16. Rc2 {[%emt 0:03:00]} c6 {[%emt 0:18:48]} 17. Rfc1 {[%emt 0:00:44]} Rc8 {[%emt 0:01:11]} 18. a4 {[%emt 0:01:03]} Rff8 {[%emt 0:00:26]} 19. axb5 {[%emt 0:07:02]} axb5 {[%emt 0:00:30]} 20. Ra1 {[%emt 0:00:25]} Ra8 {[%emt 0:05:00]} 21. Rxa8 {[%emt 0:00:32]} Bxa8 {[%emt 0:00:07]} 22. Rc1 {[%emt 0:00:11]} Bb7 {[%emt 0:04:38]} 23. Ra1 {[%emt 0:00:31]} g6 {[%emt 0:02:50]} 24. Ra7 {[%emt 0:02:30]} Rb8 {[%emt 0:01:24]} 25. Qe1 {[%emt 0:04:00]} Bc7 {[%emt 0:02:39]} 26. Ba3 {[%emt 0:09:43]} Qe6 {[%emt 0:00:47]} 27. Bb4 {[%emt 0:00:24]} Bb6 {[%emt 0:00:24]} 28. Ra1 {[%emt 0:01:22]} Bc7 {[%emt 0:03:53]} 29. Ba5 {[%emt 0:02:42]} Bd6 {[%emt 0:00:16]} 30. Bb4 {[%emt 0:00:07]} Bc7 {[%emt 0:00:13]} 1/2-1/2

[Event "WTCC-65 2018"]
[Site "Radebeul"]
[Date "2018.07.14"]
[Round "8"]
[White "Renman, Nils Gustaf"]
[Black "Vaisser, Anatoly"]
[Result "0-1"]
[ECO "A43"]
[WhiteElo "2343"]
[BlackElo "2502"]
[Annotator "RC"]
[PlyCount "52"]
[EventDate "2018.07.07"]
[EventType "team-tourn"]
[EventCountry "GER"]
[SourceTitle "playchess.com"]
[Source "ChessBase"]
[SourceQuality "1"]
[TimeControl "40/5400+30:1800+30"]

1. d4 {[%emt 0:00:00]} Nf6 {[%emt 0:00:00]} 2. Nf3 {[%emt 0:00:00]} c5 {[%emt 0:00:00]} 3. d5 {[%emt 0:00:00]} b5 {[%emt 0:00:13]} 4. Bg5 {[%emt 0:00:05]} Qb6 {[%emt 0:00:18]} 5. Bxf6 {[%emt 0:01:29]} Qxf6 {[%emt 0:00:24]} 6. c3 {[%emt 0:00:10]} Qb6 {[%emt 0:02:49]} 7. e4 {[%emt 0:01:04]} g6 {[%emt 0:02:16]} 8. a4 {[%emt 0:00:41]} b4 {[%emt 0:01:02]} 9. Nbd2 {[%emt 0:10:02]} Bg7 {[%emt 0:04:04]} 10. Nc4 {[%emt 0:02:58]} Qb7 {[%emt 0:01:25]} 11. Qc2 {[%emt 0:05:02]} O-O {[%emt 0:02:08]} 12. Bd3 {[%emt 0:02:52]} d6 {[%emt 0:02:27]} 13. O-O {[%emt 0:00:20]} a5 {[%emt 0:06:06]} 14. e5 {[%emt 0:10:58]} Qc7 {[%emt 0:03:21]} 15. exd6 {[%emt 0:08:22]} exd6 {[%emt 0:00:09]} 16. Ncd2 {[%emt 0:08:21]} Nd7 {[%emt 0:11:30]} 17. Rfe1 {[%emt 0:21:04]} bxc3 {[%emt 0:03:16]} 18. bxc3 {[%emt 0:00:28]} Nb6 {[%emt 0:01:32]} 19. Bc4 {[%emt 0:03:53]} Bf5 {[%emt 0:01:30]} 20. Qb3 {[%emt 0:03:39]} Rab8 {[%emt 0:03:44]} 21. Bb5 {[%emt 0:02:33]} c4 {[%emt 0:01:05]} 22. Qa3 {[%emt 0:00:28]} Nxd5 {[%emt 0:00:49]} 23. Bxc4 {[%emt 0:03:22]} Nxc3 {[%emt 0:04:43]} 24. Rac1 {[%emt 0:00:17]} Rb4 {[%emt 0:02:40]} 25. Bd5 {[%emt 0:12:35]} Qc5 {[%emt 0:06:54]} 26. Be4 {[%emt 0:00:05]} Rxe4 {[%emt 0:00:40]} 0-1

[Event "WTCC-65 2018"]
[Site "Radebeul"]
[Date "2018.07.14"]
[Round "8"]
[White "Bellin, Robert"]
[Black "Baum, Bernd, Dr."]
[Result "1/2-1/2"]
[ECO "B24"]
[WhiteElo "2333"]
[BlackElo "2280"]
[Annotator "NA"]
[PlyCount "32"]
[EventDate "2018.07.07"]
[EventType "team-tourn"]
[EventCountry "GER"]
[SourceTitle "playchess.com"]
[Source "ChessBase"]
[SourceQuality "1"]
[TimeControl "40/5400+30:1800+30"]

1. e4 {[%emt 0:00:29]} c5 {[%emt 0:00:00]} 2. Nc3 {[%emt 0:01:02]} Nc6 {[%emt 0:00:16]} 3. Bb5 {[%emt 0:00:50]} Nd4 {[%emt 0:00:27]} 4. Bc4 {[%emt 0:00:28]} e6 {[%emt 0:00:17]} 5. Nge2 {[%emt 0:00:51]} Nf6 {[%emt 0:03:29]} 6. O-O {[%emt 0:02:17]} a6 {[%emt 0:02:07]} 7. d3 {[%emt 0:05:23]} b5 {[%emt 0:03:27]} 8. Bb3 {[%emt 0:00:07]} Bb7 {[%emt 0:00:35]} 9. Nxd4 {[%emt 0:01:48]} cxd4 {[%emt 0:00:02]} 10. Ne2 {[%emt 0:00:09]} Qb6 {[%emt 0:04:29]} 11. Bf4 {[%emt 0:13:43]} d6 {[%emt 0:03:46]} 12. h3 {[%emt 0:02:15]} Be7 {[%emt 0:10:42]} 13. Qd2 {[%emt 0:05:19]} O-O {[%emt 0:03:32]} 14. Kh1 {[%emt 0:03:43]} Nd7 {[%emt 0:09:09]} 15. Bh2 {[%emt 0:10:07]} Bf6 {[%emt 0:03:38]} 16. a3 {[%emt 0:00:51]} Rac8 {[%emt 0:00:46]} 1/2-1/2

[Event "WTCC-65 2018"]
[Site "Radebeul"]
[Date "2018.07.14"]
[Round "8"]
[White "Klundt, Klaus"]
[Black "Lehmann, Karl-Heinz"]
[Result "1/2-1/2"]
[ECO "B42"]
[WhiteElo "2318"]
[BlackElo "2092"]
[Annotator "NA"]
[PlyCount "98"]
[EventDate "2018.07.07"]
[EventType "team-tourn"]
[EventCountry "GER"]
[SourceTitle "playchess.com"]
[Source "ChessBase"]
[SourceQuality "1"]
[TimeControl "40/5400+30:1800+30"]

1. e4 {[%emt 0:00:00]} c5 {[%emt 0:00:00]} 2. Nf3 {[%emt 0:00:00]} e6 {[%emt 0:00:21]} 3. d4 {[%emt 0:00:00]} cxd4 {[%emt 0:00:15]} 4. Nxd4 {[%emt 0:00:00]} a6 {[%emt 0:01:08]} 5. Bd3 {[%emt 0:00:15]} Nc6 {[%emt 0:01:44]} 6. Nxc6 {[%emt 0:01:31]} dxc6 {[%emt 0:01:12]} 7. Nd2 {[%emt 0:00:58]} e5 {[%emt 0:02:35]} 8. O-O {[%emt 0:02:04]} Nf6 {[%emt 0:02:09]} 9. Nc4 {[%emt 0:02:06]} Qc7 {[%emt 0:06:52]} 10. a4 {[%emt 0:02:31]} Be6 {[%emt 0:02:32] B42: Sicilian: Kan Variation: 5 Bd3} 11. Qf3 {[%emt 0:02:31]} (11. Qe2 Bc5 12. a5 Bxc4 13. Bxc4 Bb4 14. Bg5 Ng8 15. f4 f6 16. Bh4 exf4 17. Bxg8 Bc5+ 18. Kh1 {1-0 (26) Leko,P (2691)-Quparadze,G (2506) Riadh 2017}) 11... Be7 {[%emt 0:12:17]} 12. Bd2 {[%emt 0:04:02]} b5 {[%emt 0:04:42]} ({Predecessor:} 12... Nd7 13. a5 O-O 14. Qg3 Kh8 15. Rfd1 Rad8 16. Be3 Bb4 17. Bd2 Bxd2 18. Nxd2 {½-½ (46) Korosec,S (2274)-Trani,F (2218) ICCF email 2002}) 13. axb5 {[%emt 0:21:14]} cxb5 {[%emt 0:00:27]} 14. Ba5 {[%emt 0:00:30]} Qb8 {[%emt 0:06:57]} 15. Nb6 {[%emt 0:05:25]} Ra7 {[%emt 0:01:01]} 16. Nd5 {[%emt 0:01:04]} Bxd5 {[%emt 0:03:30]} 17. exd5 {[%emt 0:01:45]} O-O {[%emt 0:01:55]} 18. Rfd1 {[%emt 0:02:29]} Bd6 {[%emt 0:03:00]} 19. Re1 {[%emt 0:08:50]} Re8 {[%emt 0:07:52]} 20. Bd2 {[%emt 0:01:12]} e4 {[%emt 0:13:29]} 21. Bxe4 {[%emt 0:00:07]} Bxh2+ {[%emt 0:05:50]} 22. Kh1 {[%emt 0:01:38]} Be5 {[%emt 0:01:12]} 23. c3 {[%emt 0:09:10]} Ra8 {[%emt 0:02:49]} 24. Bc2 {[%emt 0:02:12]} Qd6 {[%emt 0:02:06]} 25. Re2 {[%emt 0:04:49]} Ra7 {[%emt 0:04:28]} 26. Rae1 {[%emt 0:03:03]} Rae7 {[%emt 0:00:18]} 27. Bb3 {[%emt 0:02:20]} Nd7 {[%emt 0:03:12]} 28. Bc2 {[%emt 0:02:20]} Nf6 {[%emt 0:00:48]} 29. Bb3 {[%emt 0:13:36]} Nd7 {[%emt 0:00:10]} 30. Bc2 {[%emt 0:00:36]} Nf6 {[%emt 0:00:06]} 31. Bf4 {[%emt 0:01:58]} Bxf4 {[%emt 0:04:23]} 32. Rxe7 {[%emt 0:00:07]} Rxe7 {[%emt 0:00:06]} 33. Rxe7 {[%emt 0:00:03]} Qxe7 {[%emt 0:00:15]} 34. Qxf4 {[%emt 0:00:02]} g6 {[%emt 0:01:18] [#]} 35. d6 $1 {[%emt 0:00:24]} Qe1+ {[%emt 0:01:09]} 36. Kh2 {[%emt 0:00:01]} Qe5 {[%emt 0:00:17]} 37. Qxe5 {[%emt 0:01:05]} Ng4+ {[%emt 0:00:06]} 38. Kg3 {[%emt 0:00:02]} Nxe5 {[%emt 0:00:14]} 39. Kf4 {[%emt 0:00:09]} f6 {[%emt 0:01:17]} 40. Ke4 {[%emt 0:00:31]} Kf7 {[%emt 0:00:40]} 41. Kd5 {[%emt 0:33:44]} Ke8 {[%emt 0:05:54]} 42. b3 {[%emt 0:00:00]} Kd7 {[%emt 0:04:15]} 43. c4 {[%emt 0:00:00]} Nc6 {[%emt 0:00:23]} 44. Kc5 {[%emt 0:00:00]} Nd8 {[%emt 0:06:31] [#]} 45. Kd5 {[%emt 0:00:00]} (45. Kb6 $1 $16) 45... Nc6 {[%emt 0:00:15]} 46. Bd1 {[%emt 0:00:00]} Nb4+ {[%emt 0:01:54]} 47. Kc5 {[%emt 0:00:00]} Nd3+ {[%emt 0:00:23]} 48. Kd5 {[%emt 0:00:00]} Nb4+ $11 {[%emt 0:00:39]} ({Much weaker is} 48... Nxf2 $6 49. Be2 $16) 49. Kc5 {[%emt 0:00:00]} Nd3+ {[%emt 0:00:15]} 1/2-1/2

[Event "WTCC-65 2018"]
[Site "Radebeul"]
[Date "2018.07.14"]
[Round "8"]
[White "Rotstein, Jefim"]
[Black "Faibisovich, Vadim Z"]
[Result "1/2-1/2"]
[ECO "C47"]
[WhiteElo "2318"]
[BlackElo "2312"]
[Annotator "NA"]
[PlyCount "65"]
[EventDate "2018.07.07"]
[EventType "team-tourn"]
[EventCountry "GER"]
[SourceTitle "playchess.com"]
[Source "ChessBase"]
[SourceQuality "1"]
[TimeControl "40/5400+30:1800+30"]

1. e4 {[%emt 0:00:00]} e5 {[%emt 0:00:22]} 2. Nf3 {[%emt 0:00:00]} Nc6 {[%emt 0:00:20]} 3. Nc3 {[%emt 0:00:16]} Nf6 {[%emt 0:00:47]} 4. d4 {[%emt 0:00:20]} exd4 {[%emt 0:02:27]} 5. Nxd4 {[%emt 0:00:08]} Bb4 {[%emt 0:01:04]} 6. Nxc6 {[%emt 0:00:14]} bxc6 {[%emt 0:00:33]} 7. Bd3 {[%emt 0:00:16]} d5 {[%emt 0:00:49]} 8. exd5 {[%emt 0:00:10]} cxd5 {[%emt 0:00:16]} 9. O-O {[%emt 0:00:20]} O-O {[%emt 0:00:39]} 10. Bg5 {[%emt 0:00:21]} c6 {[%emt 0:01:26]} 11. Qf3 {[%emt 0:00:18]} h6 {[%emt 0:06:47]} 12. Bxf6 {[%emt 0:01:10]} Qxf6 {[%emt 0:00:12]} 13. Qxf6 {[%emt 0:00:20]} gxf6 {[%emt 0:00:12]} 14. Ne2 {[%emt 0:00:35]} Bd6 {[%emt 0:02:27]} 15. Rad1 {[%emt 0:01:54] C47: Scotch Four Knights and Four Knights with 4 g3} Be5 {[%emt 0:09:22]} 16. b3 {[%emt 0:00:55] [#]} a5 $146 {[%emt 0:04:50]} ({Predecessor:} 16... Re8 17. c4 Be6 18. cxd5 Bxd5 19. Ng3 Bxg3 20. fxg3 Kg7 21. Rf4 Rad8 22. Bf1 Re5 {½-½ (89) Ghaem Maghami,E (2573)-Mchedlishvili,M (2652) Baku 2012}) 17. f4 {[%emt 0:04:57]} Bc7 {[%emt 0:02:54]} 18. Ng3 {[%emt 0:00:43]} Bg4 {[%emt 0:07:32]} 19. Rde1 {[%emt 0:03:20]} Rfe8 {[%emt 0:01:12]} 20. Rxe8+ {[%emt 0:06:48]} Rxe8 {[%emt 0:00:23]} 21. h3 $11 {[%emt 0:00:40]} Bc8 {[%emt 0:04:38]} 22. Nh5 {[%emt 0:02:02]} Bb6+ {[%emt 0:00:43]} 23. Kh2 {[%emt 0:01:12]} Bd4 {[%emt 0:00:12]} 24. c3 {[%emt 0:02:04]} Bxc3 {[%emt 0:14:25]} 25. Rc1 {[%emt 0:00:13]} Bd4 {[%emt 0:05:53]} 26. Rxc6 {[%emt 0:00:25]} Bb7 {[%emt 0:02:53]} 27. Nxf6+ {[%emt 0:03:10]} Kf8 {[%emt 0:03:54]} 28. Rc7 {[%emt 0:05:47]} Bxf6 {[%emt 0:00:45]} 29. Rxb7 {[%emt 0:00:10]} Re3 {[%emt 0:01:05]} 30. Bf5 {[%emt 0:01:36]} Bh4 {[%emt 0:00:28]} 31. g4 {[%emt 0:01:38]} Re2+ {[%emt 0:03:52]} 32. Kh1 {[%emt 0:01:15]} Rxa2 {[%emt 0:00:27]} 33. Rd7 {[%emt 0:00:57]} 1/2-1/2

[Event "WTCC-65 2018"]
[Site "Radebeul"]
[Date "2018.07.14"]
[Round "8"]
[White "Schulze, Ulrich"]
[Black "Pushkov, Nikolai"]
[Result "1/2-1/2"]
[ECO "A00"]
[WhiteElo "2313"]
[BlackElo "2311"]
[Annotator "NA"]
[PlyCount "75"]
[EventDate "2018.07.07"]
[EventType "team-tourn"]
[EventCountry "GER"]
[SourceTitle "playchess.com"]
[Source "ChessBase"]
[SourceQuality "1"]
[TimeControl "40/5400+30:1800+30"]

1. g3 {[%emt 0:00:00]} d5 {[%emt 0:00:11]} 2. Bg2 {[%emt 0:00:00]} Nf6 {[%emt 0:00:17]} 3. d3 {[%emt 0:00:22]} e6 {[%emt 0:00:44]} 4. Nf3 {[%emt 0:01:23]} Nbd7 {[%emt 0:00:36]} 5. O-O {[%emt 0:00:22]} Bc5 {[%emt 0:00:30]} 6. b3 {[%emt 0:02:31]} O-O {[%emt 0:00:21]} 7. Bb2 {[%emt 0:00:09]} a5 {[%emt 0:02:29]} 8. a3 {[%emt 0:00:46]} Re8 {[%emt 0:01:51]} 9. Nbd2 {[%emt 0:02:56]} e5 {[%emt 0:06:25]} 10. e4 {[%emt 0:07:37]} dxe4 {[%emt 0:00:20]} 11. Nxe4 {[%emt 0:02:22]} Nxe4 {[%emt 0:00:06]} 12. dxe4 {[%emt 0:00:05]} Qe7 {[%emt 0:01:33]} 13. Qe2 {[%emt 0:04:19]} b6 {[%emt 0:04:53]} 14. Rfd1 {[%emt 0:00:48]} Ba6 {[%emt 0:07:26]} 15. Qe1 {[%emt 0:01:41]} Bb7 {[%emt 0:05:06]} 16. Qc3 {[%emt 0:10:18]} Bd6 {[%emt 0:06:37]} 17. Nd2 {[%emt 0:10:09]} Nc5 {[%emt 0:05:42]} 18. Qe3 {[%emt 0:03:56]} Ne6 {[%emt 0:01:01]} 19. Nc4 {[%emt 0:02:08]} Bc5 {[%emt 0:00:21]} 20. Qe1 {[%emt 0:00:08]} f6 {[%emt 0:00:40]} 21. Ne3 {[%emt 0:02:49]} Bxe3 {[%emt 0:00:27]} 22. Qxe3 {[%emt 0:00:08]} Rad8 {[%emt 0:00:29]} 23. c3 {[%emt 0:04:37]} Rxd1+ {[%emt 0:01:31]} 24. Rxd1 {[%emt 0:00:05]} Rd8 {[%emt 0:00:06]} 25. Qe2 {[%emt 0:04:33]} Nc5 {[%emt 0:09:43]} 26. f3 {[%emt 0:10:00]} Ba6 {[%emt 0:00:58]} 27. Rxd8+ {[%emt 0:00:14]} Qxd8 {[%emt 0:00:02]} 28. Qc2 {[%emt 0:00:07]} Qd3 {[%emt 0:03:44]} 29. Qxd3 {[%emt 0:01:12]} Bxd3 {[%emt 0:02:10]} 30. b4 {[%emt 0:00:40]} Na4 {[%emt 0:00:51]} 31. Ba1 {[%emt 0:01:57]} c5 {[%emt 0:00:27]} 32. Bh3 {[%emt 0:01:36]} axb4 {[%emt 0:04:26]} 33. axb4 {[%emt 0:00:11]} Bc4 {[%emt 0:01:10]} 34. Bd7 {[%emt 0:02:43]} b5 {[%emt 0:00:03]} 35. Kf2 {[%emt 0:00:22]} Kf7 {[%emt 0:00:42]} 36. Ke3 {[%emt 0:01:26]} Ke7 {[%emt 0:00:30]} 37. Bh3 {[%emt 0:00:52]} Kd6 {[%emt 0:01:01]} 38. Bg2 {[%emt 0:00:19]} 1/2-1/2

[Event "WTCC-65 2018"]
[Site "Radebeul"]
[Date "2018.07.14"]
[Round "8"]
[White "Clara, Hans Joachim"]
[Black "Rooze, Jan"]
[Result "1/2-1/2"]
[ECO "A36"]
[WhiteElo "2289"]
[BlackElo "2314"]
[Annotator "NA"]
[PlyCount "29"]
[EventDate "2018.07.07"]
[EventType "team-tourn"]
[EventCountry "GER"]
[SourceTitle "playchess.com"]
[Source "ChessBase"]
[SourceQuality "1"]
[TimeControl "40/5400+30:1800+30"]

1. c4 {[%emt 0:00:00]} c5 {[%emt 0:00:00]} 2. Nc3 {[%emt 0:00:00]} g6 {[%emt 0:00:16]} 3. g3 {[%emt 0:00:14]} Bg7 {[%emt 0:00:08]} 4. Bg2 {[%emt 0:00:04]} Nc6 {[%emt 0:00:06]} 5. e3 {[%emt 0:00:29]} e5 {[%emt 0:05:57]} 6. Nge2 {[%emt 0:00:53]} d6 {[%emt 0:02:59]} 7. O-O {[%emt 0:00:09]} Nge7 {[%emt 0:00:21]} 8. d3 {[%emt 0:02:21]} O-O {[%emt 0:00:43]} 9. b3 {[%emt 0:01:59]} Be6 {[%emt 0:04:45]} 10. Nd5 {[%emt 0:02:49]} Rb8 {[%emt 0:08:56]} 11. Nec3 {[%emt 0:09:14]} Qd7 {[%emt 0:17:37]} 12. Bb2 Bh3 {[%emt 0:00:07]} 13. Bxh3 {[%emt 0:04:57]} Qxh3 {[%emt 0:13:26]} 14. Qe2 {[%emt 0:04:39]} Nxd5 15. Nxd5 1/2-1/2